fUSD/lending_fUSD_20250716
["ID","MTS","AMOUNT","RATE_DAILY","PERIOD"]
[372474615,1752658262707,-530.8,0.00021917,2]
[372474616,1752658262717,-4675.95,0.00021917,2]
[372474617,1752658262729,-1567.06,0.00021917,2]
[372474618,1752658262739,-460.0,0.00021917,2]
[372474619,1752658262749,-2053.83,0.00021917,2]
[372474620,1752658262758,-1743.52,0.00021917,2]
[372474621,1752658262769,-627.52,0.00021917,2]
[372474622,1752658262779,-878.4,0.00021917,2]
[372474623,1752658262789,-460.0,0.00021917,2]
[372474624,1752658262800,-522.41,0.00021917,2]
[372474625,1752658262810,-6187.57,0.00021917,2]
[372474626,1752658262820,-8066.99,0.00021917,2]
[372474627,1752658262829,-1983.15,0.00021917,2]
[372474628,1752658262839,-151.0,0.00021917,2]
[372474629,1752658262849,-1336.85,0.00021917,2]
[372474630,1752658262859,-3025.66,0.00021917,2]
[372474631,1752658262869,-151.0,0.00021917,2]
[372474632,1752658262878,-151.0,0.00021917,2]
[372474633,1752658262889,-460.0,0.00021917,2]
[372474634,1752658262899,-1955.56,0.00021917,2]
[372474635,1752658262909,-522.03,0.00021917,2]
[372474636,1752658262918,-4166.53,0.00021917,2]
[372474637,1752658262927,-460.0,0.00021917,2]
[372474638,1752658262937,-516.04,0.00021917,2]
[372474639,1752658262946,-650.27,0.00021917,2]
[372474640,1752658262956,-460.0,0.00021917,2]
[372474641,1752658262965,-151.0,0.00021917,2]
[372474642,1752658262975,-151.0,0.00021917,2]
[372474643,1752658262984,-151.0,0.00021917,2]
[372474644,1752658262995,-3022.08,0.00021917,2]
[372474645,1752658263004,-434.21477913,0.00021917,2]
[372474646,1752658263014,-212.93419,0.00021917,2]
[372474647,1752658263023,-967.07,0.00021917,2]
[372474648,1752658263033,-212.93419,0.00021917,2]
[372474649,1752658263043,-1293.06,0.00021917,2]
[372474650,1752658263053,-868.37,0.00021917,2]
[372474651,1752658263062,-212.93419,0.00021917,2]
[372474652,1752658263072,-212.93419,0.00021917,2]
[372474653,1752658263082,-602.67,0.00021917,2]
[372474654,1752658263091,-602.67,0.00021917,2]
[372474655,1752658263100,-212.93419,0.00021917,2]
[372474656,1752658263110,-602.67,0.00021917,2]
[372474657,1752658263119,-212.93419,0.00021917,2]
[372474658,1752658263132,-602.67,0.00021917,2]
[372474659,1752658263142,-480.99,0.00021917,2]
[372474660,1752658263151,-212.93419,0.00021917,2]
[372474661,1752658263160,-602.67,0.00021917,2]
[372474662,1752658263169,-602.67,0.00021917,2]
[372474663,1752658263179,-462.42014846,0.00021917,2]
[372474664,1752658263188,-460.0,0.00021917,2]
[372474665,1752658263198,-602.67,0.00021917,2]
[372474666,1752658263207,-602.67,0.00021917,2]
[372474667,1752658263217,-2349.98,0.00021917,2]
[372474668,1752658263227,-602.67,0.00021917,2]
[372474669,1752658263236,-212.93419,0.00021917,2]
[372474670,1752658263246,-602.67,0.00021917,2]
[372474671,1752658263255,-460.0,0.00021917,2]
[372474672,1752658263265,-212.93419,0.00021917,2]
[372474673,1752658263274,-212.93419,0.00021917,2]
[372474674,1752658263283,-212.93419,0.00021917,2]
[372474675,1752658263293,-587.32,0.00021917,2]
[372474676,1752658263302,-19879.61,0.00021917,2]
[372474677,1752658263311,-602.67,0.00021917,2]
[372474678,1752658263321,-602.67,0.00021917,2]
[372474679,1752658263331,-212.93419,0.00021917,2]
[372474680,1752658263340,-602.67,0.00021917,2]
[372474681,1752658263349,-602.67,0.00021917,2]
[372474682,1752658263359,-212.93419,0.00021917,2]
[372474683,1752658263369,-602.67,0.00021917,2]
[372474684,1752658263378,-460.0,0.00021917,2]
[372474685,1752658263391,-212.93419,0.00021917,2]
[372474686,1752658263400,-460.0,0.00021917,2]
[372474687,1752658263410,-15984.89,0.00021917,2]
[372474688,1752658263419,-1155.27,0.00021917,2]
[372474689,1752658263429,-10339.43,0.00021917,2]
[372474690,1752658263439,-460.0,0.00021917,2]
[372474691,1752658263448,-151.0,0.00021917,2]
[372474692,1752658263458,-1190.76,0.00021917,2]
[372474693,1752658263468,-547.19546923,0.00021917,2]
[372474694,1752658263477,-151.0,0.00021917,2]
[372474695,1752658263488,-460.0,0.00021917,2]
[372474696,1752658263498,-460.0,0.00021917,2]
[372474697,1752658263508,-151.0,0.00021917,2]
[372474698,1752658263517,-13774.59,0.00021917,2]
[372474699,1752658263527,-151.0,0.00021917,2]
[372474700,1752658263537,-460.0,0.00021917,2]
[372474701,1752658263547,-460.0,0.00021917,2]
[372474702,1752658263557,-1525.0,0.00021917,2]
[372474703,1752658263567,-151.0,0.00021917,2]
[372474704,1752658263577,-460.0,0.00021917,2]
[372474705,1752658263586,-460.0,0.00021917,2]
[372474706,1752658263596,-598.77,0.00021917,2]
[372474707,1752658263606,-460.0,0.00021917,2]
[372474708,1752658263615,-460.0,0.00021917,2]
[372474709,1752658263626,-5498.06,0.00021917,2]
[372474710,1752658263636,-7891.38,0.00021917,2]
[372474711,1752658263646,-488.99,0.00021917,2]
[372474712,1752658263655,-995.52,0.00021917,2]
[372474713,1752658263665,-460.0,0.00021917,2]
[372474714,1752658263675,-5208.77,0.00021917,2]
[372474715,1752658263685,-2091.94,0.00021917,2]
[372474716,1752658263694,-890.18,0.00021917,2]
[372474717,1752658263704,-7063.81,0.00021917,2]
[372474718,1752658263714,-460.0,0.00021917,2]
[372474719,1752658263830,-10182.48,0.00021917,2]
[372474720,1752658263840,-705.1,0.00021917,2]
[372474721,1752658263850,-462.18712367,0.00021917,2]
[372474722,1752658263860,-2503.72,0.00021917,2]
[372474723,1752658263869,-461.94884471,0.00021917,2]
[372474724,1752658263879,-460.0,0.00021917,2]
[372474725,1752658263888,-167.69222795,0.00021917,2]
[372474726,1752658263898,-2982.47,0.00021917,2]
[372474727,1752658263907,-460.0,0.00021917,2]
[372474728,1752658263917,-460.0,0.00021917,2]
[372474729,1752658263926,-5816.26,0.00021917,2]
[372474730,1752658263936,-460.43728867,0.00021917,2]
[372474731,1752658263946,-3844.63,0.00021917,2]
[372474732,1752658263955,-460.0,0.00021917,2]
[372474733,1752658263965,-460.0,0.00021917,2]
[372474734,1752658263975,-460.0,0.00021917,2]
[372474735,1752658263986,-460.0,0.00021917,2]
[372474736,1752658263996,-872.77,0.00021917,2]
[372474737,1752658264006,-460.0,0.00021917,2]
[372474738,1752658264015,-460.0,0.00021917,2]
[372474739,1752658264025,-460.0,0.00021917,2]
[372474740,1752658264035,-3170.21,0.00021917,2]
[372474741,1752658264045,-856.95,0.00021917,2]
[372474742,1752658264055,-460.0,0.00021917,2]
[372474743,1752658264064,-2913.39,0.00021917,2]
[372474744,1752658264074,-460.0,0.00021917,2]
[372474745,1752658264083,-460.0,0.00021917,2]
[372474746,1752658264093,-460.73339653,0.00021917,2]
[372474747,1752658264103,-460.0,0.00021917,2]
[372474748,1752658264112,-3509.26,0.00021917,2]
[372474749,1752658264121,-483.81585413,0.00021917,2]
[372474750,1752658264131,-460.0,0.00021917,2]
[372474751,1752658264140,-460.0,0.00021917,2]
[372474752,1752658264150,-2456.36,0.00021917,2]
[372474753,1752658264159,-460.0,0.00021917,2]
[372474754,1752658264169,-7305.47,0.00021917,2]
[372474755,1752658264178,-7240.77,0.00021917,2]
[372474756,1752658264188,-500.0,0.00021917,2]
[372474757,1752658264198,-499.65,0.00021917,2]
[372474758,1752658264208,-500.0,0.00021917,2]
[372474759,1752658264217,-2947.78,0.00021917,2]
[372474760,1752658264227,-460.0,0.00021917,2]
[372474761,1752658264236,-500.0,0.00021917,2]
[372474762,1752658264246,-500.0,0.00021917,2]
[372474763,1752658264255,-462.09173111,0.00021917,2]
[372474764,1752658264265,-500.0,0.00021917,2]
[372474765,1752658264274,-4717.18,0.00021917,2]
[372474766,1752658264284,-500.0,0.00021917,2]
[372474767,1752658264293,-500.0,0.00021917,2]
[372474768,1752658264303,-500.0,0.00021917,2]
[372474769,1752658264313,-500.0,0.00021917,2]
[372474770,1752658264323,-500.0,0.00021917,2]
[372474771,1752658264333,-757.87,0.00021917,2]
[372474772,1752658264343,-10689.87,0.00021917,2]
[372474773,1752658264353,-1468.03,0.00021917,2]
[372474774,1752658264363,-914.82,0.00021917,2]
[372474775,1752658264373,-1712.88,0.00021917,2]
[372474776,1752658264384,-817.61,0.00021917,2]
[372474777,1752658264394,-4435.12,0.00021917,2]
[372474778,1752658264403,-2899.22,0.00021917,2]
[372474779,1752658264414,-1610.65,0.00021917,2]
[372474780,1752658264423,-2133.17,0.00021917,2]
[372474781,1752658264433,-460.0,0.00021917,2]
[372474782,1752658264443,-5685.75,0.00021917,2]
[372474783,1752658264453,-460.0,0.00021917,2]
[372474784,1752658264463,-460.89151191,0.00021917,2]
[372474785,1752658264472,-1870.29,0.00021917,2]
[372474786,1752658264482,-460.0,0.00021917,2]
[372474787,1752658264493,-153989.75,0.00021917,2]
[372474788,1752658264502,-7725.98,0.00021917,2]
[372474789,1752658264512,-3210.61,0.00021917,2]
[372474790,1752658264522,-460.0,0.00021917,2]
[372474791,1752658264531,-1155.42,0.00021917,2]
[372474792,1752658264541,-2204.59,0.00021917,2]
[372474793,1752658264550,-469.792473,0.00021917,2]
[372474794,1752658264560,-469.792473,0.00021917,2]
[372474795,1752658264570,-564.01,0.00021917,2]
[372474796,1752658264580,-460.0,0.00021917,2]
[372474797,1752658264589,-469.792473,0.00021917,2]
[372474798,1752658264599,-460.0,0.00021917,2]
[372474799,1752658264608,-469.792473,0.00021917,2]
[372474800,1752658264617,-469.792473,0.00021917,2]
[372474801,1752658264627,-2245.31,0.00021917,2]
[372474802,1752658264638,-469.792473,0.00021917,2]
[372474803,1752658264648,-460.0,0.00021917,2]
[372474804,1752658264659,-469.792473,0.00021917,2]
[372474805,1752658264669,-1471.33,0.00021917,2]
[372474806,1752658264678,-460.0,0.00021917,2]
[372474807,1752658264689,-1628.92,0.00021917,2]
[372474808,1752658264698,-5735.81,0.00021917,2]
[372474809,1752658264707,-1751.79,0.00021917,2]
[372474810,1752658264717,-460.0,0.00021917,2]
[372474811,1752658264731,-460.0,0.00021917,2]
[372474812,1752658264740,-469.792473,0.00021917,2]
[372474813,1752658264749,-469.792473,0.00021917,2]
[372474814,1752658264759,-460.0,0.00021917,2]
[372474815,1752658264770,-469.792473,0.00021917,2]
[372474816,1752658264780,-469.792473,0.00021917,2]
[372474817,1752658264789,-502.39310709,0.00021917,2]
[372474818,1752658264800,-460.0,0.00021917,2]
[372474819,1752658264810,-1778.86,0.00021917,2]
[372474820,1752658264820,-469.792473,0.00021917,2]
[372474821,1752658264829,-460.0,0.00021917,2]
[372474822,1752658264838,-469.792473,0.00021917,2]
[372474823,1752658264848,-2121.89,0.00021917,2]
[372474824,1752658264857,-1960.27,0.00021917,2]
[372474825,1752658264867,-469.792473,0.00021917,2]
[372474826,1752658264877,-14607.99,0.00021917,2]
[372474827,1752658264888,-1050.8,0.00021917,2]
[372474828,1752658264898,-151.0,0.00021917,2]
[372474829,1752658264908,-151.0,0.00021917,2]
[372474830,1752658264917,-151.0,0.00021917,2]
[372474831,1752658264927,-151.0,0.00021917,2]
[372474832,1752658264936,-1935.38,0.00021917,2]
[372474833,1752658264946,-460.0,0.00021917,2]
[372474834,1752658264955,-151.0,0.00021917,2]
[372474835,1752658264965,-460.0,0.00021917,2]
[372474836,1752658264975,-226.819734,0.00021917,2]
[372474837,1752658264985,-460.0,0.00021917,2]
[372474838,1752658264995,-2146.83,0.00021917,2]
[372474839,1752658265005,-1977.76,0.00021917,2]
[372474840,1752658265014,-460.0,0.00021917,2]
[372474841,1752658265024,-460.0,0.00021917,2]
[372474842,1752658265034,-797.39,0.00021917,2]
[372474843,1752658265043,-460.0,0.00021917,2]
[372474844,1752658265053,-899.16,0.00021917,2]
[372474845,1752658265062,-460.0,0.00021917,2]
[372474846,1752658265072,-2007.49,0.00021917,2]
[372474847,1752658265082,-1302.99,0.00021917,2]
[372474848,1752658265092,-1859.21,0.00021917,2]
[372474849,1752658265102,-752.3,0.00021917,2]
[372474850,1752658265111,-460.0,0.00021917,2]
[372474851,1752658265121,-6881.72,0.00021917,2]
[372474852,1752658265130,-460.0,0.00021917,2]
[372474853,1752658265140,-151.0,0.00021917,2]
[372474854,1752658265150,-151.0,0.00021917,2]
[372474855,1752658265159,-151.0,0.00021917,2]
[372474856,1752658265168,-3126.19,0.00021917,2]
[372474857,1752658265178,-174.05568958,0.00021917,2]
[372474858,1752658265187,-460.0,0.00021917,2]
[372474859,1752658265197,-3952.05,0.00021917,2]
[372474860,1752658265206,-1812.69,0.00021917,2]
[372474861,1752658265215,-460.0,0.00021917,2]
[372474862,1752658265225,-2819.78,0.00021917,2]
[372474863,1752658265234,-949.57,0.00021917,2]
[372474864,1752658265244,-2481.84,0.00021917,2]
[372474865,1752658265253,-460.0,0.00021917,2]
[372474866,1752658265263,-461.48885521,0.00021917,2]
[372474867,1752658265273,-460.0,0.00021917,2]
[372474868,1752658265283,-1090.54,0.00021917,2]
[372474869,1752658265292,-3390.9,0.00021917,2]
[372474870,1752658265301,-507.53,0.00021917,2]
[372474871,1752658265311,-460.0,0.00021917,2]
[372474872,1752658265320,-460.0,0.00021917,2]
[372474873,1752658265330,-6462.08,0.00021917,2]
[372474874,1752658265339,-2057.85,0.00021917,2]
[372474875,1752658265348,-664.35,0.00021917,2]
[372474876,1752658265358,-460.0,0.00021917,2]
[372474877,1752658265367,-460.0,0.00021917,2]
[372474878,1752658265377,-460.0,0.00021917,2]
[372474879,1752658265388,-2979.34,0.00021917,2]
[372474880,1752658265398,-460.0,0.00021917,2]
[372474881,1752658265408,-2715.34,0.00021917,2]
[372474882,1752658265417,-8314.15,0.00021917,2]
[372474883,1752658265427,-2700.17,0.00021917,2]
[372474884,1752658265437,-460.99355165,0.00021917,2]
[372474885,1752658265446,-2330.79,0.00021917,2]
[372474886,1752658265456,-485.26,0.00021917,2]
[372474887,1752658265466,-4360.62,0.00021917,2]
[372474888,1752658265475,-3107.15,0.00021917,2]
[372474889,1752658265484,-6747.95,0.00021917,2]
[372474890,1752658265494,-2019.39,0.00021917,2]
[372474891,1752658265503,-466.12448087,0.00021917,2]
[372474892,1752658265512,-460.0,0.00021917,2]
[372474893,1752658265521,-460.0,0.00021917,2]
[372474894,1752658265531,-499.37,0.00021917,2]
[372474895,1752658265541,-584.19,0.00021917,2]
[372474896,1752658265550,-10446.42,0.00021917,2]
[372474897,1752658265559,-3508.14,0.00021917,2]
[372474898,1752658265568,-460.0,0.00021917,2]
[372474899,1752658265578,-5939.0,0.00021917,2]
[372474900,1752658265587,-460.0,0.00021917,2]
[372474901,1752658265597,-3968.15,0.00021917,2]
[372474902,1752658265606,-3606.96,0.00021917,2]
[372474903,1752658265615,-460.0,0.00021917,2]
[372474904,1752658265625,-3330.03,0.00021917,2]
[372474905,1752658265634,-5303.16,0.00021917,2]
[372474906,1752658265643,-460.78601271,0.00021917,2]
[372474907,1752658265652,-6164.6,0.00021917,2]
[372474908,1752658265661,-286.575902,0.00021917,2]
[372474909,1752658265671,-460.0,0.00021917,2]
[372474910,1752658265680,-453.98541708,0.00021917,2]
[372474911,1752658265689,-528.17,0.00021917,2]
[372474912,1752658265699,-2139.4,0.00021917,2]
[372474913,1752658265708,-963.99,0.00021917,2]
[372474914,1752658265717,-460.0,0.00021917,2]
[372474915,1752658265730,-1334.68,0.00021917,2]
[372474916,1752658265740,-460.0,0.00021917,2]
[372474917,1752658265749,-500.0,0.00021917,2]
[372474918,1752658265759,-693.9,0.00021917,2]
[372474919,1752658265769,-460.0,0.00021917,2]
[372474920,1752658265779,-693.9,0.00021917,2]
[372474921,1752658265788,-460.0,0.00021917,2]
[372474922,1752658265799,-693.9,0.00021917,2]
[372474923,1752658265809,-1147.23,0.00021917,2]
[372474924,1752658265818,-693.9,0.00021917,2]
[372474925,1752658265828,-693.9,0.00021917,2]
[372474926,1752658265838,-693.9,0.00021917,2]
[372474927,1752658265847,-1975.12,0.00021917,2]
[372474928,1752658265856,-693.9,0.00021917,2]
[372474929,1752658265866,-693.9,0.00021917,2]
[372474930,1752658265876,-693.9,0.00021917,2]
[372474931,1752658265887,-460.0,0.00021917,2]
[372474932,1752658265896,-461.85660588,0.00021917,2]
[372474933,1752658265907,-460.0,0.00021917,2]
[372474934,1752658265916,-6935.85,0.00021917,2]
[372474935,1752658265926,-715.2,0.00021917,2]
[372474936,1752658265936,-462.24493559,0.00021917,2]
[372474937,1752658265946,-693.9,0.00021917,2]
[372474938,1752658265955,-693.9,0.00021917,2]
[372474939,1752658265965,-693.9,0.00021917,2]
[372474940,1752658265974,-693.9,0.00021917,2]
[372474941,1752658265984,-460.0,0.00021917,2]
[372474942,1752658265994,-693.9,0.00021917,2]
[372474943,1752658266003,-2052.87,0.00021917,2]
[372474944,1752658266014,-1000.0,0.00021917,2]
[372474945,1752658266024,-460.0,0.00021917,2]
[372474946,1752658266033,-1544.24,0.00021917,2]
[372474947,1752658266043,-5632.53,0.00021917,2]
[372474948,1752658266052,-2965.81,0.00021917,2]
[372474949,1752658266062,-2434.5,0.00021917,2]
[372474950,1752658266071,-460.78196901,0.00021917,2]
[372474951,1752658266081,-10255.56,0.00021917,2]
[372474952,1752658266091,-784.73,0.00021917,2]
[372474953,1752658266100,-671.55,0.00021917,2]
[372474954,1752658266110,-460.0,0.00021917,2]
[372474955,1752658266120,-460.0,0.00021917,2]
[372474956,1752658266129,-460.0,0.00021917,2]
[372474957,1752658266139,-2573.17,0.00021917,2]
[372474958,1752658266148,-996.01,0.00021917,2]
[372474959,1752658266158,-461.68048605,0.00021917,2]
[372474960,1752658266167,-7820.17,0.00021917,2]
[372474961,1752658266177,-1172.47,0.00021917,2]
[372474962,1752658266187,-213.48614129,0.00021917,2]
[372474963,1752658266196,-1496.9,0.00021917,2]
[372474964,1752658266206,-3782.64,0.00021917,2]
[372474965,1752658266215,-460.0,0.00021917,2]
[372474966,1752658266225,-3342.95,0.00021917,2]
[372474967,1752658266234,-2448.94,0.00021917,2]
[372474968,1752658266244,-7686.01,0.00021917,2]
[372474969,1752658266253,-1556.4,0.00021917,2]
[372474970,1752658266263,-467.96446898,0.00021917,2]
[372474971,1752658266272,-488.07,0.00021917,2]
[372474972,1752658266282,-460.0,0.00021917,2]
[372474973,1752658266291,-1685.55,0.00021917,2]
[372474974,1752658266301,-3987.8,0.00021917,2]
[372474975,1752658266310,-25475.5,0.00021917,2]
[372474976,1752658266320,-604.26,0.00021917,2]
[372474977,1752658266330,-460.0,0.00021917,2]
[372474978,1752658266339,-1307.14,0.00021917,2]
[372474979,1752658266349,-460.0,0.00021917,2]
[372474980,1752658266359,-460.0,0.00021917,2]
[372474981,1752658266368,-2076.65,0.00021917,2]
[372474982,1752658266377,-7608.61,0.00021917,2]
[372474983,1752658266388,-460.0,0.00021917,2]
[372474984,1752658266397,-151.0,0.00021917,2]
[372474985,1752658266406,-151.0,0.00021917,2]
[372474986,1752658266415,-151.0,0.00021917,2]
[372474987,1752658266425,-460.0,0.00021917,2]
[372474988,1752658266435,-3703.01,0.00021917,2]
[372474989,1752658266445,-151.0,0.00021917,2]
[372474990,1752658266454,-460.0,0.00021917,2]
[372474991,1752658266465,-151.0,0.00021917,2]
[372474992,1752658266475,-1730.13,0.00021917,2]
[372474993,1752658266485,-460.0,0.00021917,2]
[372474994,1752658266495,-151.0,0.00021917,2]
[372474995,1752658266504,-460.0,0.00021917,2]
[372474996,1752658266514,-151.0,0.00021917,2]
[372474997,1752658266524,-6736.96,0.00021917,2]
[372474998,1752658266534,-151.0,0.00021917,2]
[372474999,1752658266543,-460.0,0.00021917,2]
[372475000,1752658266553,-1639.81,0.00021917,2]
[372475001,1752658266564,-1264.45,0.00021917,2]
[372475002,1752658266574,-460.0,0.00021917,2]
[372475003,1752658266583,-151.0,0.00021917,2]
[372475004,1752658266592,-237.754216,0.00021917,2]
[372475005,1752658266602,-3995.21,0.00021917,2]
[372475006,1752658266611,-460.0,0.00021917,2]
[372475007,1752658266621,-460.0,0.00021917,2]
[372475008,1752658266630,-1968.01,0.00021917,2]
[372475009,1752658266643,-1547.46,0.00021917,2]
[372475010,1752658266652,-460.0,0.00021917,2]
[372475011,1752658266662,-460.0,0.00021917,2]
[372475012,1752658266672,-1530.81,0.00021917,2]
[372475013,1752658266682,-460.0,0.00021917,2]
[372475014,1752658266693,-5853.44,0.00021917,2]
[372475015,1752658266703,-460.0,0.00021917,2]
[372475016,1752658266713,-259.39399829,0.00021917,2]
[372475017,1752658266725,-460.0,0.00021917,2]
[372475018,1752658266735,-7094.66,0.00021917,2]
[372475019,1752658266745,-745.83,0.00021917,2]
[372475020,1752658266755,-384.12531597,0.00021917,2]
[372475021,1752658266766,-460.0,0.00021917,2]
[372475022,1752658266775,-460.0,0.00021917,2]
[372475023,1752658266785,-470.35,0.00021917,2]
[372475024,1752658266794,-905.46,0.00021917,2]
[372475025,1752658266805,-460.0,0.00021917,2]
[372475026,1752658266814,-460.0,0.00021917,2]
[372475027,1752658266824,-2134.13,0.00021917,2]
[372475028,1752658266833,-3772.47,0.00021917,2]
[372475029,1752658266843,-9035.5,0.00021917,2]
[372475030,1752658266852,-5170.14,0.00021917,2]
[372475031,1752658266862,-460.0,0.00021917,2]
[372475032,1752658266872,-915.83,0.00021917,2]
[372475033,1752658266881,-3327.22,0.00021917,2]
[372475034,1752658266891,-485.5935928,0.00021917,2]
[372475035,1752658266902,-5983.53,0.00021917,2]
[372475036,1752658266912,-500.0,0.00021917,2]
[372475037,1752658266922,-500.0,0.00021917,2]
[372475038,1752658266933,-500.0,0.00021917,2]
[372475039,1752658266942,-460.0,0.00021917,2]
[372475040,1752658266952,-5343.25,0.00021917,2]
[372475041,1752658266961,-1557.04,0.00021917,2]
[372475042,1752658266971,-460.0,0.00021917,2]
[372475043,1752658266981,-460.0,0.00021917,2]
[372475044,1752658266990,-460.0,0.00021917,2]
[372475045,1752658267000,-161.25523575,0.00021917,2]
[372475046,1752658267010,-17951.43,0.00021917,2]
[372475047,1752658267019,-500.0,0.00021917,2]
[372475048,1752658267029,-500.0,0.00021917,2]
[372475049,1752658267039,-500.0,0.00021917,2]
[372475050,1752658267048,-500.0,0.00021917,2]
[372475051,1752658267057,-500.0,0.00021917,2]
[372475052,1752658267067,-500.0,0.00021917,2]
[372475053,1752658267076,-460.0,0.00021917,2]
[372475054,1752658267086,-4910.81,0.00021917,2]
[372475055,1752658267095,-3785.25,0.00021917,2]
[372475056,1752658267105,-461.07437066,0.00021917,2]
[372475057,1752658267114,-5201.2,0.00021917,2]
[372475058,1752658267123,-423.35499958,0.00021917,2]
[372475059,1752658267134,-8527.96,0.00021917,2]
[372475060,1752658267143,-7825.95,0.00021917,2]
[372475061,1752658267153,-500.0,0.00021917,2]
[372475062,1752658267163,-359.22,0.00021917,2]
[372475063,1752658267174,-915.35,0.00021917,2]
[372475064,1752658267183,-460.0,0.00021917,2]
[372475065,1752658267193,-460.0,0.00021917,2]
[372475066,1752658267202,-554.59,0.00021917,2]
[372475067,1752658267211,-1900.37,0.00021917,2]
[372475068,1752658267221,-6348.57,0.00021917,2]
[372475069,1752658267233,-460.0,0.00021917,2]
[372475070,1752658267245,-460.0,0.00021917,2]
[372475071,1752658267259,-460.0,0.00021917,2]
[372475072,1752658267269,-610.704744,0.00021917,2]
[372475073,1752658267278,-460.0,0.00021917,2]
[372475074,1752658267288,-610.704744,0.00021917,2]
[372475075,1752658267298,-1311.99,0.00021917,2]
[372475076,1752658267307,-610.704744,0.00021917,2]
[372475077,1752658267317,-460.0,0.00021917,2]
[372475078,1752658267328,-610.704744,0.00021917,2]
[372475079,1752658267338,-610.704744,0.00021917,2]
[372475080,1752658267348,-610.704744,0.00021917,2]
[372475081,1752658267357,-610.704744,0.00021917,2]
[372475082,1752658267366,-610.704744,0.00021917,2]
[372475083,1752658267376,-610.704744,0.00021917,2]
[372475084,1752658267387,-460.0,0.00021917,2]
[372475085,1752658267396,-500.0,0.00021917,2]
[372475086,1752658267406,-500.0,0.00021917,2]
[372475087,1752658267415,-5887.87,0.00021917,2]
[372475088,1752658267425,-610.704744,0.00021917,2]
[372475089,1752658267434,-523.03,0.00021917,2]
[372475090,1752658267443,-434.33362683,0.00021917,2]
[372475091,1752658267453,-610.704744,0.00021917,2]
[372475092,1752658267462,-7007.51,0.00021917,2]
[372475093,1752658267471,-610.704744,0.00021917,2]
[372475094,1752658267480,-610.704744,0.00021917,2]
[372475095,1752658267490,-63909.37,0.00021917,2]
[372475096,1752658267499,-5389.36,0.00021917,2]
[372475097,1752658267509,-610.704744,0.00021917,2]
[372475098,1752658267518,-5565.32,0.00021917,2]
[372475099,1752658267528,-1809.95,0.00021917,2]
[372475100,1752658267537,-610.704744,0.00021917,2]
[372475101,1752658267546,-1746.06,0.00021917,2]
[372475102,1752658267555,-8705.86,0.00021917,2]
[372475103,1752658267565,-460.0,0.00021917,2]
[372475104,1752658267574,-610.704744,0.00021917,2]
[372475105,1752658267583,-460.0,0.00021917,2]
[372475106,1752658267593,-519.49,0.00021917,2]
[372475107,1752658267602,-461.17828677,0.00021917,2]
[372475108,1752658267611,-1317.16,0.00021917,2]
[372475109,1752658267621,-704.37,0.00021917,2]
[372475110,1752658267630,-597.72,0.00021917,2]
[372475111,1752658267640,-460.0,0.00021917,2]
[372475112,1752658267649,-3552.69,0.00021917,2]
[372475113,1752658267659,-460.0,0.00021917,2]
[372475114,1752658267668,-460.0,0.00021917,2]